[Event "7th Summer Cup 2024"]
[Site "Rhodes"]
[Date "2024.06.29"]
[Round "8.10"]
[White "Sioulis, Stergios"]
[Black "Rigopoulos-Tsigkos, Alexandros"]
[Result "0-1"]
[ECO "D02"]
[WhiteElo "1743"]
[BlackElo "2039"]
[Annotator "RC"]
[PlyCount "70"]
[EventDate "2024.06.21"]
[EventType "swiss"]
[EventCountry "GRE"]
[SourceTitle "playchess.com"]
[Source "ChessBase"]
[SourceQuality "1"]
[TimeControl "40/5400+30:900+30"]

1. d4 {[%emt 0:00:03]} d5 {[%emt 0:04:41]} 2. Nf3 {[%emt 0:00:17]} Nf6 {[%emt 0:00:35]} 3. Bf4 {[%emt 0:01:11]} c5 {[%emt 0:00:21]} 4. e3 {[%emt 0:00:58]} Nc6 {[%emt 0:00:20]} 5. c3 {[%emt 0:05:00]} Qb6 {[%emt 0:00:15]} 6. Qc2 {[%emt 0:02:38]} cxd4 {[%emt 0:03:46]} 7. exd4 {[%emt 0:00:16]} Bg4 {[%emt 0:04:48]} 8. Nbd2 {[%emt 0:04:26]} e6 {[%emt 0:00:52]} 9. Ne5 {[%emt 0:06:02]} Bf5 {[%emt 0:02:40]} 10. Bd3 {[%emt 0:16:14]} Bxd3 {[%emt 0:02:28]} 11. Qxd3 {[%emt 0:00:27]} Be7 {[%emt 0:01:57]} 12. O-O {[%emt 0:01:25]} h6 {[%emt 0:03:35]} 13. Ndf3 {[%emt 0:07:43]} O-O {[%emt 0:06:06]} 14. Kh1 {[%emt 0:08:09]} Rfd8 {[%emt 0:11:36]} 15. Rab1 {[%emt 0:14:56]} Ne4 {[%emt 0:06:15]} 16. Nxc6 {[%emt 0:01:07]} bxc6 {[%emt 0:01:27]} 17. c4 {[%emt 0:05:33]} Qa6 {[%emt 0:01:43]} 18. Ne5 {[%emt 0:00:32]} Bf6 {[%emt 0:02:46]} 19. f3 {[%emt 0:02:44]} Nd6 {[%emt 0:09:55]} 20. Rfc1 {[%emt 0:03:35]} Nf5 {[%emt 0:05:57]} 21. g4 {[%emt 0:02:04]} dxc4 {[%emt 0:09:24]} 22. Rxc4 {[%emt 0:01:54]} Ne7 {[%emt 0:01:47]} 23. b3 {[%emt 0:01:12]} c5 {[%emt 0:08:29]} 24. Qe4 {[%emt 0:02:52]} cxd4 {[%emt 0:01:15]} 25. Rd1 {[%emt 0:03:44]} Rac8 {[%emt 0:04:05]} 26. Rxc8 {[%emt 0:01:11]} Qxc8 {[%emt 0:01:38]} 27. Rxd4 {[%emt 0:01:03]} Rxd4 {[%emt 0:01:19]} 28. Qxd4 {[%emt 0:00:04]} Nd5 {[%emt 0:00:48]} 29. Bg3 {[%emt 0:03:23]} Qc1+ {[%emt 0:00:44]} 30. Qg1 {[%emt 0:00:36]} Qc3 {[%emt 0:00:41]} 31. Nc4 {[%emt 0:02:56]} Qxf3+ {[%emt 0:00:29]} 32. Qg2 {[%emt 0:00:05]} Qd1+ {[%emt 0:01:12]} 33. Qg1 {[%emt 0:00:03]} Qxg4 {[%emt 0:00:13]} 34. Qxa7 {[%emt 0:00:39]} Qe4+ {[%emt 0:00:04]} 35. Kg1 {[%emt 0:00:18]} Bd4+ {[%emt 0:00:07]} 0-1

[Event "7th Summer Cup 2024"]
[Site "Rhodes"]
[Date "2024.06.29"]
[Round "8.11"]
[White "Fang, Tianyang"]
[Black "Mickiewicz, Piotr"]
[Result "0-1"]
[ECO "B40"]
[WhiteElo "1614"]
[BlackElo "2257"]
[Annotator "RC"]
[PlyCount "52"]
[EventDate "2024.06.21"]
[EventType "swiss"]
[EventCountry "GRE"]
[SourceTitle "playchess.com"]
[Source "ChessBase"]
[SourceQuality "1"]
[TimeControl "40/5400+30:900+30"]

1. e4 {[%emt 0:00:05]} c5 {[%emt 0:00:11]} 2. Nf3 {[%emt 0:00:09]} e6 {[%emt 0:00:04]} 3. g3 {[%emt 0:01:40]} Nc6 {[%emt 0:01:15]} 4. Bg2 {[%emt 0:00:14]} Nf6 {[%emt 0:00:20]} 5. Qe2 {[%emt 0:00:09]} d5 {[%emt 0:02:05]} 6. exd5 {[%emt 0:00:19]} Nxd5 {[%emt 0:00:16]} 7. O-O {[%emt 0:00:28]} Be7 {[%emt 0:00:24]} 8. Rd1 {[%emt 0:01:20]} Bf6 {[%emt 0:04:55]} 9. a4 {[%emt 0:08:32]} O-O {[%emt 0:00:46]} 10. Na3 {[%emt 0:00:44]} b6 {[%emt 0:07:13]} 11. Nc4 {[%emt 0:02:19]} Bb7 {[%emt 0:04:57]} 12. d3 {[%emt 0:01:50]} Qc7 {[%emt 0:13:49]} 13. Re1 {[%emt 0:11:46]} Rad8 {[%emt 0:06:11]} 14. c3 {[%emt 0:17:47]} Rfe8 {[%emt 0:14:19]} 15. Nfd2 {[%emt 0:11:18]} e5 {[%emt 0:11:07]} 16. h4 {[%emt 0:12:01]} Be7 {[%emt 0:09:38]} 17. Ne4 {[%emt 0:05:02]} f6 {[%emt 0:03:52]} 18. Be3 {[%emt 0:14:32]} Bf8 {[%emt 0:02:50]} 19. h5 {[%emt 0:01:13]} f5 {[%emt 0:01:42]} 20. Ng5 {[%emt 0:05:09]} Nf6 {[%emt 0:01:41]} 21. Qc2 {[%emt 0:01:59]} h6 {[%emt 0:02:52]} 22. Nf3 {[%emt 0:01:04]} Qf7 {[%emt 0:01:04]} 23. a5 {[%emt 0:01:32]} e4 {[%emt 0:04:21]} 24. Nh4 {[%emt 0:00:17]} Rxd3 {[%emt 0:01:10]} 25. Qb3 {[%emt 0:00:55]} Ne5 {[%emt 0:03:35]} 26. Nd2 {[%emt 0:00:27]} Bd5 {[%emt 0:00:23]} 0-1

[Event "7th Summer Cup 2024"]
[Site "Rhodes"]
[Date "2024.06.29"]
[Round "8.12"]
[White "Mohammed Saeed Alshamsi"]
[Black "Baruch, Amit"]
[Result "0-1"]
[ECO "C54"]
[WhiteElo "1474"]
[BlackElo "1614"]
[Annotator "NA RC"]
[PlyCount "47"]
[EventDate "2024.06.21"]
[EventType "swiss"]
[EventCountry "GRE"]
[SourceTitle "playchess.com"]
[Source "ChessBase"]
[SourceQuality "1"]
[TimeControl "40/5400+30:900+30"]

1. e4 {[%emt 0:04:00]} e5 {[%emt 0:00:13]} 2. Nf3 {[%emt 0:00:08]} Nc6 {[%emt 0:00:09]} 3. Bc4 {[%emt 0:00:11]} Bc5 {[%emt 0:00:08]} 4. c3 {[%emt 0:00:19]} Nf6 {[%emt 0:00:23]} 5. d3 {[%emt 0:00:08]} d6 {[%emt 0:01:03]} 6. b4 {[%emt 0:00:56]} Bb6 {[%emt 0:00:28]} 7. a4 {[%emt 0:00:10]} a5 {[%emt 0:00:30]} 8. b5 {[%emt 0:00:28]} Ne7 {[%emt 0:00:59]} 9. O-O {[%emt 0:00:19]} O-O {[%emt 0:02:45]} 10. Nbd2 {[%emt 0:01:20]} Ng6 {[%emt 0:03:49]} 11. Re1 {[%emt 0:00:37]} Ng4 {[%emt 0:08:00]} 12. Re2 {[%emt 0:00:10]} Nf4 {[%emt 0:00:22]} 13. h3 {[%emt 0:01:14]} Nxe2+ {[%emt 0:01:42]} 14. Qxe2 {[%emt 0:02:33]} Nxf2 {[%emt 0:11:32]} 15. d4 {[%emt 0:00:48]} exd4 {[%emt 0:03:53]} 16. cxd4 {[%emt 0:00:08]} Nxh3+ {[%emt 0:00:13]} 17. gxh3 {[%emt 0:00:21]} Qf6 {[%emt 0:01:10]} 18. Bb2 {[%emt 0:00:51]} Bxh3 {[%emt 0:01:06]} 19. Kf2 {[%emt 0:00:38]} Rfe8 {[%emt 0:03:44]} 20. Rg1 {[%emt 0:01:21]} Qf4 {[%emt 0:02:36]} 21. Ke1 {[%emt 0:01:35]} Bg4 {[%emt 0:14:42]} 22. Bxf7+ {[%emt 1:23:15]} Kxf7 {[%emt 0:03:00]} 23. Qc4+ {[%emt 0:00:00]} Be6 {[%emt 0:10:00]} 24. Ng5+ {[%emt 0:00:00]} 0-1

[Event "7th Summer Cup 2024"]
[Site "Rhodes"]
[Date "2024.06.29"]
[Round "8.13"]
[White "Van de Lagemaat, Arend"]
[Black "Michelakis, Evaggelos"]
[Result "1/2-1/2"]
[ECO "A84"]
[WhiteElo "2030"]
[BlackElo "1734"]
[Annotator "RC"]
[PlyCount "46"]
[EventDate "2024.06.21"]
[EventType "swiss"]
[EventCountry "GRE"]
[SourceTitle "playchess.com"]
[Source "ChessBase"]
[SourceQuality "1"]
[TimeControl "40/5400+30:900+30"]

1. d4 {[%emt 0:02:11]} f5 {[%emt 0:00:32]} 2. Nf3 {[%emt 0:00:18]} e6 {[%emt 0:00:28]} 3. g3 {[%emt 0:00:06]} b6 {[%emt 0:00:53]} 4. Bg2 {[%emt 0:00:12]} Bb7 {[%emt 0:00:18]} 5. O-O {[%emt 0:00:06]} Nf6 {[%emt 0:00:45]} 6. c4 {[%emt 0:00:05]} Be7 {[%emt 0:01:06]} 7. d5 {[%emt 0:01:17]} O-O {[%emt 0:04:13]} 8. Ne5 {[%emt 0:00:27]} exd5 {[%emt 0:02:22]} 9. cxd5 {[%emt 0:01:17]} d6 {[%emt 0:00:28]} 10. Nc4 {[%emt 0:04:44]} Nbd7 {[%emt 0:01:28]} 11. Nc3 {[%emt 0:00:31]} Nc5 {[%emt 0:03:14]} 12. Nd2 {[%emt 0:14:37]} a5 {[%emt 0:02:53]} 13. Qc2 {[%emt 0:13:14]} Qd7 {[%emt 0:10:34]} 14. Nb3 {[%emt 0:14:37]} Rf7 {[%emt 0:05:37]} 15. Be3 {[%emt 0:05:13]} Nxb3 {[%emt 0:03:04]} 16. Qxb3 {[%emt 0:02:36]} Raf8 {[%emt 0:08:57]} 17. Rac1 {[%emt 0:01:39]} Ba6 {[%emt 0:00:12]} 18. Bh3 {[%emt 0:03:38]} Ng4 {[%emt 0:02:39]} 19. Bd4 {[%emt 0:01:33]} Bf6 {[%emt 0:01:07]} 20. Bxf6 {[%emt 0:03:33]} Rxf6 {[%emt 0:00:37]} 21. Rfe1 {[%emt 0:09:14]} Rh6 {[%emt 0:00:20]} 22. Bxg4 {[%emt 0:12:08]} fxg4 {[%emt 0:00:22]} 23. Ne4 {[%emt 0:03:30]} Qf7 {[%emt 0:06:50]} 1/2-1/2

[Event "7th Summer Cup 2024"]
[Site "Rhodes"]
[Date "2024.06.29"]
[Round "8.14"]
[White "Odysseos, Ioannis"]
[Black "Al Maamari, Wafia Darwish"]
[Result "0-1"]
[ECO "A00"]
[WhiteElo "1599"]
[BlackElo "1933"]
[Annotator "RC"]
[PlyCount "92"]
[EventDate "2024.06.21"]
[EventType "swiss"]
[EventCountry "GRE"]
[SourceTitle "playchess.com"]
[Source "ChessBase"]
[SourceQuality "1"]
[TimeControl "40/5400+30:900+30"]

1. a3 {[%emt 0:00:43]} d5 {[%emt 0:00:41]} 2. Nf3 {[%emt 0:00:09]} Nf6 {[%emt 0:00:45]} 3. e3 {[%emt 0:00:07]} Bg4 {[%emt 0:01:51]} 4. Be2 {[%emt 0:00:45]} e6 {[%emt 0:01:19]} 5. d4 {[%emt 0:00:29]} Bd6 {[%emt 0:00:56]} 6. O-O {[%emt 0:00:49]} O-O {[%emt 0:01:31]} 7. Nbd2 {[%emt 0:00:30]} Nbd7 {[%emt 0:03:28]} 8. c4 {[%emt 0:00:29]} c5 {[%emt 0:03:09]} 9. dxc5 {[%emt 0:01:51]} Nxc5 {[%emt 0:04:41]} 10. b4 {[%emt 0:00:30]} Nce4 {[%emt 0:01:51]} 11. Nxe4 {[%emt 0:11:52]} Nxe4 {[%emt 0:03:49]} 12. Bb2 {[%emt 0:01:14]} dxc4 {[%emt 0:07:40]} 13. Qd4 {[%emt 0:05:43]} Nf6 {[%emt 0:02:58]} 14. Rfd1 {[%emt 0:02:05]} Be7 {[%emt 0:03:19]} 15. Qxc4 {[%emt 0:00:46]} Qc8 {[%emt 0:02:04]} 16. Rac1 {[%emt 0:04:47]} Bf5 {[%emt 0:10:43]} 17. Ne5 {[%emt 0:05:23]} Qxc4 {[%emt 0:02:11]} 18. Rxc4 {[%emt 0:05:14]} Rac8 {[%emt 0:03:18]} 19. Nd7 {[%emt 0:19:56]} Rxc4 {[%emt 0:08:42]} 20. Bxc4 {[%emt 0:03:34]} Rc8 {[%emt 0:04:07]} 21. Nxf6+ {[%emt 0:02:06]} Bxf6 {[%emt 0:01:33]} 22. Bxf6 {[%emt 0:00:37]} gxf6 {[%emt 0:00:02]} 23. Bf1 {[%emt 0:05:42]} e5 {[%emt 0:02:48]} 24. g3 {[%emt 0:01:29]} Rc3 {[%emt 0:01:27]} 25. Ra1 {[%emt 0:01:56]} Kf8 {[%emt 0:01:27]} 26. Bg2 {[%emt 0:00:31]} b6 {[%emt 0:02:24]} 27. b5 {[%emt 0:04:47]} Rb3 {[%emt 0:02:07]} 28. Bc6 {[%emt 0:00:36]} Bd3 {[%emt 0:02:36]} 29. a4 {[%emt 0:20:20]} Rb1+ 30. Rxb1 {[%emt 0:00:00]} Bxb1 {[%emt 0:00:20]} 31. Kg2 {[%emt 0:00:00]} Bc2 {[%emt 0:00:06]} 32. Bd5 {[%emt 0:00:00]} Bxa4 {[%emt 0:00:55]} 33. Bc4 {[%emt 0:00:00]} Bc2 {[%emt 0:01:28]} 34. Kf3 {[%emt 0:00:00]} Bf5 {[%emt 0:00:35]} 35. g4 {[%emt 0:00:00]} Be6 {[%emt 0:00:21]} 36. Bd3 {[%emt 0:02:52]} h6 {[%emt 0:00:17]} 37. Ke4 {[%emt 0:00:32]} Ke7 {[%emt 0:02:11]} 38. h3 {[%emt 0:00:24]} Kd6 {[%emt 0:01:09]} 39. f4 exf4 {[%emt 0:00:55]} 40. exf4 {[%emt 0:00:00]} Kc5 {[%emt 0:00:00]} 41. Be2 {[%emt 0:05:36]} Bd7 {[%emt 0:03:31]} 42. h4 {[%emt 0:12:06]} f5+ {[%emt 0:31:15]} 43. Ke5 {[%emt 0:00:00]} fxg4 {[%emt 0:00:00]} 44. Kf6 {[%emt 0:00:00]} g3 {[%emt 0:00:00]} 45. Bf3 {[%emt 0:00:00]} Bxb5 {[%emt 0:00:00]} 46. Kxf7 {[%emt 0:00:00]} Bc6 {[%emt 0:00:00]} 0-1